fUST/lending_fUST_20241225
["ID","MTS","AMOUNT","RATE_DAILY","PERIOD"]
[346537949,1735056352777,-529.6844542,0.00012357,2]
[346537950,1735056352803,-1270.9118667,0.00012462,2]
[346537951,1735056352828,-529.6844542,0.00012481,2]
[346537952,1735056352852,-321.6296292,0.00012697,2]
[346537953,1735056352878,-169.198964,0.00012698,2]
[346537954,1735056352905,-169.198964,0.00012761,2]
[346537955,1735056429100,-153.1336114,0.00013137,2]
[346537956,1735056429121,-344.839,0.0001327,2]
[346537957,1735056429143,-300.0,0.00013437,2]
[346537958,1735056429163,-300.0,0.00013437,2]
[346537959,1735056429184,-2078.0,0.00013438,2]
[346537960,1735056429209,-529.0,0.00013438,2]
[346537961,1735056429229,-1762.00947977,0.00013438,2]
[346537962,1735056451287,160.0,0.00022732,120]
[346537963,1735056511334,160.0,0.0002197,120]
[346537964,1735056564155,-300.0,0.00012696,2]
[346537965,1735056564177,-300.0,0.00012696,2]
[346537966,1735056564201,-23340.2250648,0.00012697,2]
[346538040,1735056634872,-594.99052023,0.00013438,2]
[346538042,1735056634883,-179.11216363,0.00013598,2]
[346538047,1735056634918,-19.48860279,0.00013598,2]
[346538049,1735056634927,-500.0,0.0001367,2]
[346538051,1735056634937,-1200.0,0.0001367,2]
[346538053,1735056634946,-151.0,0.0001367,2]
[346538055,1735056634956,-300.0,0.00013672,2]
[346538057,1735056634966,-300.0,0.00013672,2]
[346538059,1735056634975,-500.0,0.00013673,2]
[346538061,1735056634984,-500.0,0.00013673,2]
[346538063,1735056634993,-500.0,0.00013673,2]
[346538065,1735056635002,-2555.03651168,0.00013696,2]
[346538067,1735056635012,-500.0,0.00013697,2]
[346538069,1735056635022,-500.0,0.00013697,2]
[346538071,1735056635031,-578.60411619,0.00013697,2]
[346538073,1735056635041,-469.71222075,0.00013697,2]
[346538075,1735056635050,-226.79118771,0.00013697,2]
[346538077,1735056635059,-11059.66450277,0.00013697,2]
[346538079,1735056635069,-500.0,0.00013698,2]
[346538081,1735056635078,-500.0,0.00013698,2]
[346538083,1735056635088,-500.0,0.00013698,2]
[346538085,1735056635097,-500.0,0.00013698,2]
[346538087,1735056635106,-500.0,0.00013698,2]
[346538089,1735056635115,-500.0,0.00013698,2]
[346538091,1735056635124,-500.0,0.00013698,2]
[346538093,1735056635134,-485.79631426,0.00013698,2]
[346538095,1735056635143,-500.0,0.00013698,2]
[346538097,1735056635153,-500.0,0.00013698,2]
[346538099,1735056635162,-500.0,0.00013698,2]
[346538101,1735056635171,-500.0,0.00013698,2]
[346538103,1735056635180,-500.0,0.00013698,2]
[346538105,1735056635189,-500.0,0.00013698,2]
[346538107,1735056635198,-500.0,0.00013698,2]
[346538109,1735056635207,-500.0,0.00013698,2]
[346538111,1735056635216,-500.0,0.00013698,2]
[346538113,1735056635225,-500.0,0.00013698,2]
[346538115,1735056635235,-500.0,0.00013698,2]
[346538117,1735056635244,-500.0,0.00013698,2]
[346538119,1735056635254,-500.0,0.00013698,2]
[346538121,1735056635263,-500.0,0.00013698,2]
[346538123,1735056635272,-546.35871628,0.00013698,2]
[346538125,1735056635281,-500.0,0.00013698,2]
[346538127,1735056635290,-500.0,0.00013698,2]
[346538129,1735056635300,-500.0,0.00013698,2]
[346538131,1735056635309,-500.0,0.00013698,2]
[346538133,1735056635319,-500.0,0.00013698,2]
[346538135,1735056635328,-500.0,0.00013698,2]
[346538136,1735056635338,-500.0,0.00013698,2]
[346538138,1735056635347,-524.1,0.00013698,2]
[346538140,1735056635357,-389.22869115,0.00013698,2]
[346538156,1735056638177,-110.77130885,0.00013698,2]
[346538157,1735056638189,-500.0,0.00013698,2]
[346538158,1735056638198,-317.55759335,0.00013698,2]
[346538159,1735056638210,-182.44240665,0.00013698,2]
[346538160,1735056638220,-500.0,0.00013698,2]
[346538161,1735056638230,-500.0,0.00013698,2]
[346538162,1735056638239,-500.0,0.00013698,2]
[346538163,1735056638249,-500.0,0.00013698,2]
[346538164,1735056638258,-500.0,0.00013698,2]
[346538165,1735056638268,-500.0,0.00013698,2]
[346538166,1735056638277,-500.0,0.00013698,2]
[346538167,1735056638286,-500.0,0.00013698,2]
[346538168,1735056638297,-500.0,0.00013698,2]
[346538169,1735056638307,-500.0,0.00013698,2]
[346538170,1735056638317,-500.0,0.00013698,2]
[346538171,1735056638327,-471.22273265,0.00013698,2]
[346538172,1735056638336,-500.0,0.00013698,2]
[346538173,1735056638347,-500.0,0.00013698,2]
[346538174,1735056638357,-500.0,0.00013698,2]
[346538175,1735056638367,-500.0,0.00013698,2]
[346538176,1735056638377,-500.0,0.00013698,2]
[346538177,1735056638386,-500.0,0.00013698,2]
[346538178,1735056638398,-500.0,0.00013698,2]
[346538179,1735056638408,-500.0,0.00013698,2]
[346538180,1735056638418,-500.0,0.00013698,2]
[346538181,1735056638428,-500.0,0.00013698,2]
[346538182,1735056638438,-500.0,0.00013698,2]
[346538183,1735056638447,-500.0,0.00013698,2]
[346538184,1735056638456,-500.0,0.00013698,2]
[346538185,1735056638465,-368.24020386,0.00013698,2]
[346538186,1735056638475,-500.0,0.00013698,2]
[346538187,1735056638485,-500.0,0.00013698,2]
[346538188,1735056638495,-500.0,0.00013698,2]
[346538189,1735056638505,-500.0,0.00013698,2]
[346538190,1735056638514,-500.0,0.00013698,2]
[346538191,1735056638525,-240.65789789,0.00013698,2]
[346538192,1735056638534,-516.9,0.00013698,2]
[346538193,1735056638544,-500.0,0.00013698,2]
[346538194,1735056638554,-500.0,0.00013698,2]
[346538195,1735056638563,-500.0,0.00013698,2]
[346538196,1735056638573,-500.0,0.00013698,2]
[346538197,1735056638583,-500.0,0.00013698,2]
[346538198,1735056638592,-961.47,0.00013698,2]
[346538199,1735056638603,-500.0,0.00013698,2]
[346538200,1735056638613,-605.34,0.00013698,2]
[346538201,1735056638624,-500.0,0.00013698,2]
[346538202,1735056638633,-500.0,0.00013698,2]
[346538203,1735056638643,-500.0,0.00013698,2]
[346538204,1735056638652,-500.0,0.00013698,2]
[346538205,1735056638661,-500.0,0.00013698,2]
[346538206,1735056638671,-503.9175722,0.00013698,2]
[346538207,1735056638680,-500.0,0.00013698,2]
[346538208,1735056638690,-500.0,0.00013698,2]
[346538209,1735056638699,-500.0,0.00013698,2]
[346538210,1735056638709,-500.0,0.00013698,2]
[346538211,1735056638719,-500.0,0.00013698,2]
[346538212,1735056638730,-500.0,0.00013698,2]
[346538213,1735056638739,-500.0,0.00013698,2]
[346538214,1735056638749,-500.0,0.00013698,2]
[346538215,1735056638758,-615.58,0.00013698,2]
[346538216,1735056638768,-1009.7,0.00013698,2]
[346538217,1735056638777,-500.0,0.00013698,2]
[346538218,1735056638787,-500.0,0.00013698,2]
[346538219,1735056638963,-297.48391546,0.00013698,2]
[346538220,1735056638973,-500.0,0.00013698,2]
[346538221,1735056638983,-500.0,0.00013698,2]
[346538222,1735056638992,-500.0,0.00013698,2]
[346538223,1735056639002,-500.0,0.00013698,2]
[346538224,1735056639011,-500.0,0.00013698,2]
[346538225,1735056639022,-500.0,0.00013698,2]
[346538226,1735056639032,-500.0,0.00013698,2]
[346538227,1735056639043,-500.0,0.00013698,2]
[346538228,1735056639054,-553.92,0.00013698,2]
[346538229,1735056639064,-918.56,0.00013698,2]
[346538230,1735056639075,-500.0,0.00013698,2]
[346538231,1735056639084,-1088.54,0.00013698,2]
[346538232,1735056639094,-500.0,0.00013698,2]
[346538233,1735056639106,-500.0,0.00013698,2]
[346538234,1735056639116,-1542.82,0.00013698,2]
[346538235,1735056639125,-500.0,0.00013698,2]
[346538236,1735056639134,-500.0,0.00013698,2]
[346538237,1735056639143,-500.0,0.00013698,2]
[346538238,1735056639153,-500.0,0.00013698,2]
[346538239,1735056639162,-500.0,0.00013698,2]
[346538240,1735056639172,-500.0,0.00013698,2]
[346538241,1735056639181,-500.0,0.00013698,2]
[346538242,1735056639192,-517.99,0.00013698,2]
[346538243,1735056639201,-500.0,0.00013698,2]
[346538244,1735056639211,-500.0,0.00013698,2]
[346538245,1735056639220,-2636.33,0.00013698,2]
[346538246,1735056639229,-500.0,0.00013698,2]
[346538247,1735056639239,-522.10950238,0.00013698,2]
[346538248,1735056639248,-500.0,0.00013698,2]
[346538249,1735056639258,-5072.43,0.00013698,2]
[346538250,1735056639271,-500.0,0.00013698,2]
[346538251,1735056639281,-500.0,0.00013698,2]
[346538252,1735056639290,-500.0,0.00013698,2]
[346538253,1735056639299,-500.0,0.00013698,2]
[346538254,1735056639309,-500.0,0.00013698,2]
[346538255,1735056639318,-500.0,0.00013698,2]
[346538256,1735056639328,-205.95442035,0.00013698,2]
[346538257,1735056639337,-500.0,0.00013698,2]
[346538258,1735056639346,-501.9639455,0.00013698,2]
[346538259,1735056639356,-500.0,0.00013698,2]
[346538260,1735056639366,-500.0,0.00013698,2]
[346538261,1735056639375,-568.77,0.00013698,2]
[346538262,1735056639385,-500.0,0.00013698,2]
[346538263,1735056639396,-500.0,0.00013698,2]
[346538264,1735056639406,-500.0,0.00013698,2]
[346538265,1735056639415,-500.0,0.00013698,2]
[346538266,1735056639424,-502.75956139,0.00013698,2]
[346538267,1735056639434,-500.0,0.00013698,2]
[346538268,1735056639443,-198.12338279,0.00013698,2]
[346538269,1735056639453,-500.0,0.00013698,2]
[346538270,1735056639464,-500.66,0.00013698,2]
[346538271,1735056639474,-682.91,0.00013698,2]
[346538272,1735056639482,-500.0,0.00013698,2]
[346538273,1735056639492,-500.0,0.00013698,2]
[346538274,1735056639501,-500.0,0.00013698,2]
[346538275,1735056639512,-223.52267788,0.00013698,2]
[346538276,1735056639522,-500.0,0.00013698,2]
[346538277,1735056639531,-500.0,0.00013698,2]
[346538278,1735056639541,-529.61,0.00013698,2]
[346538279,1735056639550,-500.0,0.00013698,2]
[346538280,1735056639560,-500.0,0.00013698,2]
[346538281,1735056639570,-500.0,0.00013698,2]
[346538282,1735056639579,-257.08029336,0.00013698,2]
[346538283,1735056639589,-500.0,0.00013698,2]
[346538284,1735056639599,-500.0,0.00013698,2]
[346538285,1735056639608,-500.0,0.00013698,2]
[346538286,1735056639617,-500.0,0.00013698,2]
[346538287,1735056639627,-500.0,0.00013698,2]
[346538288,1735056639637,-500.0,0.00013698,2]
[346538289,1735056639646,-500.0,0.00013698,2]
[346538290,1735056639655,-500.0,0.00013698,2]
[346538291,1735056639665,-508.60878939,0.00013698,2]
[346538292,1735056639675,-500.0,0.00013698,2]
[346538293,1735056639684,-500.0,0.00013698,2]
[346538294,1735056639694,-501.70122586,0.00013698,2]
[346538295,1735056639703,-500.0,0.00013698,2]
[346538296,1735056639713,-500.0,0.00013698,2]
[346538297,1735056639722,-500.0,0.00013698,2]
[346538298,1735056639732,-574.16,0.00013698,2]
[346538299,1735056639742,-500.0,0.00013698,2]
[346538300,1735056639751,-500.0,0.00013698,2]
[346538301,1735056639761,-500.0,0.00013698,2]
[346538302,1735056639772,-500.0,0.00013698,2]
[346538303,1735056639782,-524.95779028,0.00013698,2]
[346538304,1735056639792,-150.43271396,0.00013698,2]
[346538305,1735056639804,-171.64340415,0.00013698,2]
[346538306,1735056639814,-500.0,0.00013698,2]
[346538307,1735056639823,-500.0,0.00013698,2]
[346538308,1735056639833,-526.8516863,0.00013698,2]
[346538309,1735056639843,-500.0,0.00013698,2]
[346538310,1735056639853,-500.0,0.00013698,2]
[346538311,1735056639862,-500.0,0.00013698,2]
[346538312,1735056639871,-500.0,0.00013698,2]
[346538313,1735056639882,-500.0,0.00013698,2]
[346538314,1735056639891,-500.0,0.00013698,2]
[346538315,1735056639901,-500.0,0.00013698,2]
[346538316,1735056639911,-500.0,0.00013698,2]
[346538317,1735056639920,-500.0,0.00013698,2]
[346538318,1735056639930,-500.0,0.00013698,2]
[346538319,1735056639939,-500.0,0.00013698,2]
[346538321,1735056639949,-500.0,0.00013698,2]
[346538322,1735056639958,-500.0,0.00013698,2]
[346538323,1735056639967,-500.0,0.00013698,2]
[346538324,1735056639977,-500.0,0.00013698,2]
[346538325,1735056639986,-500.0,0.00013698,2]
[346538326,1735056639996,-500.0,0.00013698,2]
[346538328,1735056640005,-500.0,0.00013698,2]
[346538330,1735056640015,-500.0,0.00013698,2]
[346538332,1735056640026,-1291.5,0.00013698,2]
[346538334,1735056640035,-500.0,0.00013698,2]
[346538335,1735056640044,-500.0,0.00013698,2]
[346538336,1735056640054,-500.0,0.00013698,2]
[346538337,1735056640063,-500.0,0.00013698,2]
[346538338,1735056640073,-324.81563084,0.00013698,2]
[346538339,1735056640082,-500.0,0.00013698,2]
[346538340,1735056640091,-1784.88,0.00013698,2]
[346538341,1735056640100,-500.0,0.00013698,2]
[346538343,1735056640110,-500.0,0.00013698,2]
[346538344,1735056640119,-500.0,0.00013698,2]
[346538345,1735056640128,-500.0,0.00013698,2]
[346538346,1735056640137,-500.0,0.00013698,2]
[346538347,1735056640147,-500.0,0.00013698,2]
[346538348,1735056640156,-500.0,0.00013698,2]
[346538349,1735056640164,-924.75,0.00013698,2]
[346538350,1735056640174,-202.29,0.00013698,2]
[346538351,1735056640183,-500.0,0.00013698,2]
[346538352,1735056640192,-500.0,0.00013698,2]
[346538353,1735056640201,-500.0,0.00013698,2]
[346538354,1735056640211,-1925.56,0.00013698,2]
[346538355,1735056640220,-500.0,0.00013698,2]
[346538356,1735056640229,-500.0,0.00013698,2]
[346538357,1735056640238,-500.0,0.00013698,2]
[346538358,1735056640248,-535.99,0.00013698,2]
[346538359,1735056640258,-500.0,0.00013698,2]
[346538360,1735056640267,-559.46,0.00013698,2]
[346538362,1735056640276,-500.0,0.00013698,2]
[346538364,1735056640286,-500.0,0.00013698,2]
[346538365,1735056640296,-843.17,0.00013698,2]
[346538366,1735056640305,-500.0,0.00013698,2]
[346538367,1735056640315,-500.0,0.00013698,2]
[346538368,1735056640325,-296.66027784,0.00013698,2]
[346538369,1735056640335,-627.76,0.00013698,2]
[346538370,1735056640344,-153.22341901,0.00013698,2]
[346538371,1735056640355,-500.0,0.00013698,2]
[346538372,1735056640365,-1000.0,0.00013698,2]
[346538373,1735056640375,-515.39350899,0.00013698,2]
[346538374,1735056640384,-500.0,0.00013698,2]
[346538375,1735056640394,-500.0,0.00013698,2]
[346538376,1735056640404,-500.0,0.00013698,2]
[346538377,1735056640414,-500.0,0.00013698,2]
[346538378,1735056640423,-642.5,0.00013698,2]
[346538379,1735056640434,-2686.73,0.00013698,2]
[346538380,1735056640443,-500.0,0.00013698,2]
[346538382,1735056640453,-500.0,0.00013698,2]
[346538384,1735056640462,-500.0,0.00013698,2]
[346538386,1735056640471,-1551.32,0.00013698,2]
[346538389,1735056640480,-500.0,0.00013698,2]
[346538391,1735056640489,-500.0,0.00013698,2]
[346538393,1735056640499,-810.92,0.00013698,2]
[346538394,1735056640508,-500.0,0.00013698,2]
[346538395,1735056640518,-500.0,0.00013698,2]
[346538396,1735056640528,-500.0,0.00013698,2]
[346538397,1735056640538,-938.58,0.00013698,2]
[346538398,1735056640547,-500.0,0.00013698,2]
[346538399,1735056640557,-500.0,0.00013698,2]
[346538400,1735056640566,-500.0,0.00013698,2]
[346538401,1735056640577,-1000.0,0.00013698,2]
[346538402,1735056640586,-500.0,0.00013698,2]
[346538403,1735056640595,-893.77,0.00013698,2]
[346538404,1735056640605,-500.0,0.00013698,2]
[346538405,1735056640615,-501.89852628,0.00013698,2]
[346538406,1735056640624,-500.0,0.00013698,2]
[346538407,1735056640634,-500.0,0.00013698,2]
[346538408,1735056640643,-500.0,0.00013698,2]
[346538409,1735056640652,-500.0,0.00013698,2]
[346538410,1735056640662,-500.0,0.00013698,2]
[346538411,1735056640671,-500.0,0.00013698,2]
[346538412,1735056640681,-500.0,0.00013698,2]
[346538413,1735056640690,-502.05345877,0.00013698,2]
[346538414,1735056640699,-2544.14,0.00013698,2]
[346538415,1735056640709,-501.44767073,0.00013698,2]
[346538416,1735056640719,-500.0,0.00013698,2]
[346538417,1735056640728,-500.0,0.00013698,2]
[346538418,1735056640737,-500.0,0.00013698,2]
[346538419,1735056640745,-500.0,0.00013698,2]
[346538420,1735056640755,-982.76,0.00013698,2]
[346538421,1735056640764,-500.0,0.00013698,2]
[346538422,1735056640773,-1093.63,0.00013698,2]
[346538423,1735056640783,-500.0,0.00013698,2]
[346538424,1735056640795,-500.0,0.00013698,2]
[346538425,1735056640808,-500.0,0.00013698,2]
[346538426,1735056640818,-500.0,0.00013698,2]
[346538427,1735056640828,-2141.01,0.00013698,2]
[346538428,1735056640839,-500.0,0.00013698,2]
[346538429,1735056640848,-2902.24,0.00013698,2]
[346538430,1735056640858,-500.0,0.00013698,2]
[346538431,1735056640867,-500.0,0.00013698,2]
[346538432,1735056640878,-813.48,0.00013698,2]
[346538433,1735056640887,-500.0,0.00013698,2]
[346538434,1735056640897,-500.0,0.00013698,2]
[346538435,1735056640907,-500.0,0.00013698,2]
[346538436,1735056640916,-500.0,0.00013698,2]
[346538437,1735056640926,-500.0,0.00013698,2]
[346538438,1735056640935,-1234.02,0.00013698,2]
[346538439,1735056640944,-500.0,0.00013698,2]
[346538440,1735056640954,-1637.17,0.00013698,2]
[346538441,1735056640963,-500.0,0.00013698,2]
[346538442,1735056640972,-500.0,0.00013698,2]
[346538443,1735056640982,-528.02,0.00013698,2]
[346538444,1735056640991,-500.0,0.00013698,2]
[346538445,1735056641000,-2049.15,0.00013698,2]
[346538446,1735056641009,-500.0,0.00013698,2]
[346538447,1735056641019,-500.0,0.00013698,2]
[346538448,1735056641028,-1180.17,0.00013698,2]
[346538449,1735056641037,-1908.5,0.00013698,2]
[346538450,1735056641046,-500.0,0.00013698,2]
[346538451,1735056641056,-1108.44,0.00013698,2]
[346538452,1735056641065,-500.0,0.00013698,2]
[346538453,1735056641074,-500.0,0.00013698,2]
[346538454,1735056641083,-500.0,0.00013698,2]
[346538455,1735056641092,-500.0,0.00013698,2]
[346538456,1735056641103,-1081.4,0.00013698,2]
[346538457,1735056641112,-1563.5,0.00013698,2]
[346538458,1735056641121,-1026.38,0.00013698,2]
[346538459,1735056641131,-500.0,0.00013698,2]
[346538460,1735056641140,-500.0,0.00013698,2]
[346538461,1735056641149,-500.0,0.00013698,2]
[346538462,1735056641159,-500.0,0.00013698,2]
[346538463,1735056641168,-1655.91,0.00013698,2]
[346538464,1735056641177,-500.0,0.00013698,2]
[346538465,1735056641186,-500.0,0.00013698,2]
[346538466,1735056641195,-500.0,0.00013698,2]
[346538467,1735056641204,-1658.71,0.00013698,2]
[346538468,1735056641213,-1155.04,0.00013698,2]
[346538469,1735056641223,-1700.31,0.00013698,2]
[346538470,1735056641232,-520.26597321,0.00013698,2]
[346538471,1735056641242,-500.0,0.00013698,2]
[346538472,1735056641251,-721.56,0.00013698,2]
[346538473,1735056641262,-679.95,0.00013698,2]
[346538474,1735056641271,-748.81,0.00013698,2]
[346538475,1735056641280,-500.0,0.00013698,2]
[346538476,1735056641289,-1275.28,0.00013698,2]
[346538477,1735056641298,-500.0,0.00013698,2]
[346538478,1735056641307,-500.0,0.00013698,2]
[346538479,1735056641317,-500.0,0.00013698,2]
[346538480,1735056641327,-500.0,0.00013698,2]
[346538481,1735056641337,-500.0,0.00013698,2]
[346538482,1735056641347,-676.59,0.00013698,2]
[346538483,1735056641357,-938.08,0.00013698,2]
[346538484,1735056641367,-1244.93,0.00013698,2]
[346538485,1735056641376,-500.0,0.00013698,2]
[346538486,1735056641385,-500.0,0.00013698,2]
[346538487,1735056641395,-726.52,0.00013698,2]
[346538488,1735056641405,-500.0,0.00013698,2]
[346538489,1735056641414,-500.0,0.00013698,2]
[346538490,1735056641424,-955.2,0.00013698,2]
[346538491,1735056641434,-500.0,0.00013698,2]
[346538492,1735056641443,-3329.07,0.00013698,2]
[346538493,1735056641452,-500.0,0.00013698,2]
[346538494,1735056641461,-500.0,0.00013698,2]
[346538495,1735056641470,-500.0,0.00013698,2]
[346538496,1735056641479,-500.0,0.00013698,2]
[346538497,1735056641489,-3662.07,0.00013698,2]
[346538498,1735056641498,-500.0,0.00013698,2]
[346538499,1735056641507,-500.0,0.00013698,2]
[346538500,1735056641516,-500.0,0.00013698,2]
[346538501,1735056641525,-487.18617998,0.00013698,2]
[346538502,1735056641534,-20922.36,0.00013698,2]
[346538503,1735056641543,-897.72,0.00013698,2]
[346538504,1735056641553,-500.0,0.00013698,4]
[346538505,1735056641562,-500.0,0.00013698,2]
[346538506,1735056641571,-4356.62,0.00013698,2]
[346538507,1735056641581,-500.0,0.00013698,2]
[346538508,1735056641590,-500.0,0.00013698,2]
[346538509,1735056641599,-500.0,0.00013698,2]
[346538510,1735056641610,-500.0,0.00013698,2]
[346538511,1735056641620,-350.86918224,0.00013698,2]
[346538512,1735056641629,-500.0,0.00013698,2]
[346538513,1735056641638,-500.0,0.00013698,2]
[346538514,1735056641647,-500.0,0.00013698,2]
[346538515,1735056641656,-500.0,0.00013698,2]
[346538516,1735056641665,-1060.39152289,0.00013698,2]
[346538517,1735056641686,-393.03847711,0.00013698,2]
[346538518,1735056641696,-606.96152289,0.00013698,2]
[346538519,1735056641707,-595.88847711,0.00013698,2]
[346538520,1735056641717,-1855.08,0.00013698,2]
[346538521,1735056641727,-500.0,0.00013698,2]
[346538522,1735056641736,-544.75581202,0.00013698,2]
[346538523,1735056641746,-500.0,0.00013698,2]
[346538524,1735056641756,-259.88039565,0.00013698,2]
[346538525,1735056641765,-500.0,0.00013698,2]
[346538526,1735056641775,-500.0,0.00013698,2]
[346538527,1735056641784,-500.0,0.00013698,2]
[346538528,1735056641795,-500.0,0.00013698,2]
[346538529,1735056641806,-1029.30148068,0.00013698,2]
[346538530,1735056641825,-862.87851932,0.00013698,2]
[346538531,1735056641836,-500.0,0.00013698,2]
[346538532,1735056641845,-7815.87,0.00013698,2]
[346538533,1735056641855,-500.0,0.00013698,2]
[346538534,1735056641864,-500.0,0.00013698,2]
[346538535,1735056641876,-500.0,0.00013698,2]
[346538536,1735056641886,-500.0,0.00013698,2]
[346538537,1735056641896,-500.0,0.00013698,2]
[346538538,1735056641906,-569.43147599,0.00013698,2]
[346538539,1735056641918,-367.70852401,0.00013698,2]
[346538540,1735056641927,-500.0,0.00013698,2]
[346538541,1735056641936,-1120.47,0.00013698,2]
[346538542,1735056641946,-931.1,0.00013698,2]
[346538543,1735056642083,-500.0,0.00013698,2]
[346538544,1735056642093,-554.04,0.00013698,2]
[346538545,1735056642104,-503.77909595,0.00013698,2]
[346538546,1735056642113,-500.0,0.00013698,2]
[346538547,1735056642123,-500.0,0.00013698,2]
[346538548,1735056642132,-1079.36,0.00013698,2]
[346538549,1735056642141,-1928.55,0.00013698,2]
[346538550,1735056642151,-570.41768047,0.00013698,2]
[346538551,1735056642160,-500.0,0.00013698,2]
[346538552,1735056642169,-500.0,0.00013698,2]
[346538553,1735056642178,-500.0,0.00013698,2]
[346538554,1735056642188,-500.0,0.00013698,2]
[346538555,1735056642197,-2843.14,0.00013698,2]
[346538556,1735056642207,-512.12,0.00013698,2]
[346538557,1735056642216,-8794.07,0.00013698,2]
[346538558,1735056642225,-500.0,0.00013698,2]
[346538559,1735056642235,-500.0,0.00013698,2]
[346538560,1735056642244,-500.0,0.00013698,2]
[346538561,1735056642254,-500.0,0.00013698,2]
[346538562,1735056642263,-74882.37,0.00013698,2]
[346538563,1735056642272,-3297.62,0.00013698,2]
[346538564,1735056642281,-500.0,0.00013698,2]
[346538565,1735056642290,-500.0,0.00013698,2]
[346538566,1735056642299,-500.0,0.00013698,2]
[346538567,1735056642308,-5635.97,0.00013698,2]
[346538568,1735056642318,-607.89,0.00013698,2]
[346538569,1735056642327,-500.0,0.00013698,2]
[346538570,1735056642336,-500.0,0.00013698,2]
[346538571,1735056642346,-1196.46,0.00013698,2]
[346538572,1735056642356,-1393.43,0.00013698,2]
[346538573,1735056642365,-3010.79,0.00013698,2]
[346538574,1735056642375,-500.0,0.00013698,2]
[346538575,1735056642385,-500.0,0.00013698,2]
[346538576,1735056642395,-500.0,0.00013698,2]
[346538577,1735056642404,-500.0,0.00013698,2]
[346538578,1735056642414,-581.09,0.00013698,2]
[346538579,1735056642423,-3547.18,0.00013698,2]
[346538580,1735056642432,-646.48,0.00013698,2]
[346538581,1735056642441,-2338.74,0.00013698,2]
[346538582,1735056642450,-500.0,0.00013698,2]
[346538583,1735056642460,-1348.91,0.00013698,2]
[346538584,1735056642470,-500.0,0.00013698,2]
[346538585,1735056642479,-500.0,0.00013698,2]
[346538586,1735056642488,-500.0,0.00013698,2]
[346538587,1735056642497,-863.95,0.00013698,2]
[346538588,1735056642506,-12944.73,0.00013698,2]
[346538589,1735056642515,-500.0,0.00013698,2]
[346538590,1735056642525,-1016.53,0.00013698,2]
[346538591,1735056642534,-500.0,0.00013698,2]
[346538592,1735056642544,-500.0,0.00013698,2]
[346538593,1735056642553,-500.0,0.00013698,2]
[346538594,1735056642562,-17785.27,0.00013698,2]
[346538596,1735056642572,-500.0,0.00013698,2]
[346538598,1735056642581,-500.0,0.00013698,2]
[346538600,1735056642590,-222.0,0.00013699,2]
[346538601,1735056642599,-222.0,0.00013699,2]
[346538603,1735056642609,-222.0,0.00013699,2]
[346538604,1735056642618,-222.0,0.00013699,2]
[346538605,1735056642627,-222.0,0.00013699,2]
[346538606,1735056642636,-222.0,0.00013699,2]